[Event "Titled Tuesday Blitz April 05 Late 2022"]
[White "Baches Garcia, Guillermo"]
[Black "Barbosa, Evandro Amorim"]
[WhiteFideId "2209764"]
[BlackFideId "2115824"]
[WhiteElo "2506"]
[BlackElo "2669"]
[Result "1-0"]
[Round "04"]
[TimeControl "180+1"]
[Date "2022.04.06"]
[WhiteClock "0:00:04"]
[BlackClock "0:00:01"]

1. e4 {[%clk 0:02:58]}  c5 {[%clk 0:02:59]} 2. Nf3 {[%clk 0:02:58]}  e6 {[%clk 0:03:00]} 3. c4 {[%clk 0:02:58]}  Nc6 {[%clk 0:03:00]} 4. d4 {[%clk 0:02:58]}  cxd4 {[%clk 0:03:00]} 5. Nxd4 {[%clk 0:02:58]}  Nf6 {[%clk 0:03:00]} 6. Nc3 {[%clk 0:02:56]}  Bb4 {[%clk 0:03:00]} 7. Nxc6 {[%clk 0:02:54]}  bxc6 {[%clk 0:03:01]} 8. Bd3 {[%clk 0:02:54]}  e5 {[%clk 0:03:01]} 9. O-O {[%clk 0:02:54]}  Bc5 {[%clk 0:03:01]} 10. h3 {[%clk 0:02:46]}  d6 {[%clk 0:03:00]} 11. Re1 {[%clk 0:02:44]}  Be6 {[%clk 0:02:59]} 12. Be3 {[%clk 0:02:43]}  Nd7 {[%clk 0:02:53]} 13. Na4 {[%clk 0:02:36]}  Bxe3 {[%clk 0:02:50]} 14. Rxe3 {[%clk 0:02:36]}  O-O {[%clk 0:02:50]} 15. Bf1 {[%clk 0:02:19]}  Rb8 {[%clk 0:02:50]} 16. b3 {[%clk 0:02:16]}  Qc7 {[%clk 0:02:40]} 17. Rd3 {[%clk 0:02:06]}  Nf6 {[%clk 0:02:32]} 18. Nc3 {[%clk 0:02:00]}  Rfd8 {[%clk 0:02:19]} 19. Qd2 {[%clk 0:01:58]}  Ne8 {[%clk 0:02:15]} 20. Rd1 {[%clk 0:01:50]}  Rdc8 {[%clk 0:02:14]} 21. Rg3 {[%clk 0:01:44]}  Qe7 {[%clk 0:02:05]} 22. Qe3 {[%clk 0:01:34]}  g6 {[%clk 0:02:01]} 23. Rd2 {[%clk 0:01:33]}  Kg7 {[%clk 0:01:55]} 24. Qe1 {[%clk 0:01:31]}  h5 {[%clk 0:01:47]} 25. Rgd3 {[%clk 0:01:31]}  h4 {[%clk 0:01:44]} 26. Qd1 {[%clk 0:01:29]}  Qg5 {[%clk 0:01:39]} 27. Be2 {[%clk 0:01:19]}  Rc7 {[%clk 0:01:36]} 28. Kh1 {[%clk 0:01:06]}  Kh8 {[%clk 0:01:32]} 29. Bf1 {[%clk 0:01:03]}  Re7 {[%clk 0:01:26]} 30. Qe1 {[%clk 0:01:03]}  Rbb7 {[%clk 0:01:23]} 31. Qe3 {[%clk 0:01:03]}  Qxe3 {[%clk 0:01:19]} 32. Rxe3 {[%clk 0:01:02]}  f5 {[%clk 0:01:15]} 33. exf5 {[%clk 0:00:58]}  gxf5 {[%clk 0:01:16]} 34. c5 {[%clk 0:00:54]}  f4 {[%clk 0:01:07]} 35. Re1 {[%clk 0:00:46]}  Bf5 {[%clk 0:00:44]} 36. cxd6 {[%clk 0:00:40]}  Red7 {[%clk 0:00:29]} 37. Rxe5 {[%clk 0:00:25]}  Nxd6 {[%clk 0:00:29]} 38. Rxd6 {[%clk 0:00:21]}  Rxd6 {[%clk 0:00:30]} 39. Rxf5 {[%clk 0:00:21]}  Re7 {[%clk 0:00:31]} 40. Kh2 {[%clk 0:00:15]}  Re1 {[%clk 0:00:25]} 41. Bc4 {[%clk 0:00:14]}  Rd2 {[%clk 0:00:24]} 42. Rxf4 {[%clk 0:00:14]}  Rc2 {[%clk 0:00:23]} 43. Rxh4+ {[%clk 0:00:14]}  Kg7 {[%clk 0:00:23]} 44. Rg4+ {[%clk 0:00:14]}  Kf8 {[%clk 0:00:23]} 45. Ne4 {[%clk 0:00:14]}  Rxa2 {[%clk 0:00:22]} 46. h4 {[%clk 0:00:13]}  Raa1 {[%clk 0:00:21]} 47. Kg3 {[%clk 0:00:10]}  Rh1 {[%clk 0:00:20]} 48. f3 {[%clk 0:00:08]}  a5 {[%clk 0:00:21]} 49. Kf4 {[%clk 0:00:08]}  Rac1 {[%clk 0:00:21]} 50. Ke5 {[%clk 0:00:07]}  a4 {[%clk 0:00:20]} 51. Kf6 {[%clk 0:00:07]}  Ke8 {[%clk 0:00:20]} 52. Be6 {[%clk 0:00:07]}  Kd8 {[%clk 0:00:20]} 53. Kg6 {[%clk 0:00:04]}  a3 {[%clk 0:00:19]} 54. b4 {[%clk 0:00:03]}  Rc2 {[%clk 0:00:15]} 55. Rg5 {[%clk 0:00:03]}  a2 {[%clk 0:00:14]} 56. Bxa2 {[%clk 0:00:03]}  Rxa2 {[%clk 0:00:15]} 57. h5 {[%clk 0:00:04]}  Rb2 {[%clk 0:00:12]} 58. h6 {[%clk 0:00:04]}  Rxb4 {[%clk 0:00:12]} 59. h7 {[%clk 0:00:04]}  Rb7 {[%clk 0:00:09]} 60. Nf6 {[%clk 0:00:04]}  Re7 {[%clk 0:00:03]} 61. Nh5 {[%clk 0:00:04]}  Re8 {[%clk 0:00:01]} 62. Kg7 {[%clk 0:00:04]}  Re7+ {[%clk 0:00:01]} 63. Kg8 {[%clk 0:00:04]}  Rxh7 {[%clk 0:00:01]} 64. Kxh7 {[%clk 0:00:03]}  Kc7 {[%clk 0:00:02]} 65. g4 {[%clk 0:00:03]}  Kd6 {[%clk 0:00:03]} 66. Kg6 {[%clk 0:00:03]}  c5 {[%clk 0:00:04]} 67. Kf6 {[%clk 0:00:02]}  c4 {[%clk 0:00:04]} 68. Rg8 {[%clk 0:00:03]}  Kd7 {[%clk 0:00:03]} 69. Rg7+ {[%clk 0:00:02]}  Kd6 {[%clk 0:00:03]} 70. Rg8 {[%clk 0:00:03]}  Kd7 {[%clk 0:00:03]} 71. Rg5 {[%clk 0:00:03]}  Kd6 {[%clk 0:00:03]} 72. Rg7 {[%clk 0:00:02]}  c3 {[%clk 0:00:03]} 73. Rg8 {[%clk 0:00:02]}  Kd7 {[%clk 0:00:03]} 74. Rg7+ {[%clk 0:00:02]}  Kd6 {[%clk 0:00:03]} 75. Rg8 {[%clk 0:00:03]}  c2 {[%clk 0:00:03]} 76. Rc8 {[%clk 0:00:03]}  c1=Q {[%clk 0:00:03]} 77. Rxc1 {[%clk 0:00:04]}  Rxc1 {[%clk 0:00:04]} 78. f4 {[%clk 0:00:03]}  Rf1 {[%clk 0:00:03]} 79. g5 {[%clk 0:00:03]}  Kd7 {[%clk 0:00:04]} 80. g6 {[%clk 0:00:03]}  Ke8 {[%clk 0:00:02]} 81. g7 {[%clk 0:00:03]}  Rg1 {[%clk 0:00:02]} 82. f5 {[%clk 0:00:03]}  Rg2 {[%clk 0:00:01]} 83. Nf4 {[%clk 0:00:03]}  Rg1 {[%clk 0:00:01]} 84. Ng6 {[%clk 0:00:04]} 1-0


[Site "https://www.chess.com"]

[Event "Titled Tuesday Blitz April 05 Late 2022"]
[White "Bachmann, Axel"]
[Black "Sapunov, Evgeny"]
[WhiteFideId "3700488"]
[BlackFideId "4126661"]
[WhiteElo "2522"]
[BlackElo "2714"]
[Result "0-1"]
[Round "04"]
[TimeControl "180+1"]
[Date "2022.04.06"]
[WhiteClock "0:00:01"]
[BlackClock "0:00:07"]

1. d4 {[%clk 0:02:55]}  Nf6 {[%clk 0:02:59]} 2. g3 {[%clk 0:02:56]}  d5 {[%clk 0:02:56]} 3. Nf3 {[%clk 0:02:56]}  c6 {[%clk 0:02:56]} 4. c4 {[%clk 0:02:56]}  dxc4 {[%clk 0:02:51]} 5. Bg2 {[%clk 0:02:54]}  b5 {[%clk 0:02:51]} 6. O-O {[%clk 0:02:52]}  Bb7 {[%clk 0:02:52]} 7. b3 {[%clk 0:02:49]}  cxb3 {[%clk 0:02:51]} 8. Qxb3 {[%clk 0:02:46]}  e6 {[%clk 0:02:48]} 9. Nc3 {[%clk 0:02:40]}  Nbd7 {[%clk 0:02:45]} 10. Rd1 {[%clk 0:02:34]}  Be7 {[%clk 0:02:26]} 11. Ne5 {[%clk 0:02:32]}  Qb6 {[%clk 0:02:04]} 12. a4 {[%clk 0:02:29]}  a6 {[%clk 0:01:53]} 13. a5 {[%clk 0:02:13]}  Qc7 {[%clk 0:01:48]} 14. Bf4 {[%clk 0:02:05]}  Bd6 {[%clk 0:01:47]} 15. Rac1 {[%clk 0:01:13]}  Nxe5 {[%clk 0:01:07]} 16. dxe5 {[%clk 0:01:12]}  Bxe5 {[%clk 0:01:08]} 17. Bxe5 {[%clk 0:00:58]}  Qxe5 {[%clk 0:01:08]} 18. Qa3 {[%clk 0:00:53]}  Qc7 {[%clk 0:01:05]} 19. Ne4 {[%clk 0:00:45]}  Nxe4 {[%clk 0:01:04]} 20. Bxe4 {[%clk 0:00:45]}  Qe7 {[%clk 0:00:41]} 21. Qf3 {[%clk 0:00:24]}  O-O {[%clk 0:00:38]} 22. Bxc6 {[%clk 0:00:24]}  Bxc6 {[%clk 0:00:36]} 23. Rxc6 {[%clk 0:00:25]}  h6 {[%clk 0:00:29]} 24. Rdd6 {[%clk 0:00:20]}  Rfb8 {[%clk 0:00:17]} 25. Rb6 {[%clk 0:00:15]}  Qc7 {[%clk 0:00:15]} 26. Rdc6 {[%clk 0:00:12]}  Qd8 {[%clk 0:00:15]} 27. Rxa6 {[%clk 0:00:10]}  Rxa6 {[%clk 0:00:14]} 28. Rxa6 {[%clk 0:00:11]}  b4 {[%clk 0:00:14]} 29. Qb3 {[%clk 0:00:09]}  Qd4 {[%clk 0:00:12]} 30. e3 {[%clk 0:00:06]}  Qc5 {[%clk 0:00:12]} 31. h4 {[%clk 0:00:03]}  h5 {[%clk 0:00:11]} 32. Kg2 {[%clk 0:00:03]}  g6 {[%clk 0:00:12]} 33. Kg1 {[%clk 0:00:03]}  Kg7 {[%clk 0:00:10]} 34. Kg2 {[%clk 0:00:03]}  Qb5 {[%clk 0:00:10]} 35. Qb2+ {[%clk 0:00:03]}  Kg8 {[%clk 0:00:09]} 36. Ra7 {[%clk 0:00:04]}  Qc5 {[%clk 0:00:09]} 37. Ra6 {[%clk 0:00:01]}  Rd8 {[%clk 0:00:07]} 38. Kh2 {[%clk 0:00:01]}  Rd1 {[%clk 0:00:07]} 0-1


[Site "https://www.chess.com"]

[Event "Titled Tuesday Blitz April 05 Late 2022"]
[White "Bazeev, German"]
[Black "Romanchuk, Viktor"]
[WhiteFideId "24119350"]
[BlackFideId "14109271"]
[WhiteElo "2493"]
[BlackElo "2242"]
[Result "1-0"]
[Round "04"]
[TimeControl "180+1"]
[Date "2022.04.05"]
[WhiteClock "0:00:12"]
[BlackClock "0:00:01"]

1. d4 {[%clk 0:02:31]}  d5 {[%clk 0:02:59]} 2. Nf3 {[%clk 0:02:32]}  Nf6 {[%clk 0:02:58]} 3. c4 {[%clk 0:02:32]}  c6 {[%clk 0:02:58]} 4. Qc2 {[%clk 0:02:32]}  dxc4 {[%clk 0:02:58]} 5. e4 {[%clk 0:02:29]}  Bg4 {[%clk 0:02:51]} 6. Bxc4 {[%clk 0:02:28]}  e6 {[%clk 0:02:51]} 7. Be3 {[%clk 0:02:27]}  Nbd7 {[%clk 0:02:50]} 8. Nc3 {[%clk 0:02:24]}  Bb4 {[%clk 0:02:39]} 9. Nd2 {[%clk 0:02:23]}  Bh5 {[%clk 0:02:33]} 10. f3 {[%clk 0:02:19]}  O-O {[%clk 0:02:30]} 11. g4 {[%clk 0:02:18]}  Bg6 {[%clk 0:02:29]} 12. h4 {[%clk 0:02:17]}  h5 {[%clk 0:02:23]} 13. gxh5 {[%clk 0:02:14]}  Nxh5 {[%clk 0:02:20]} 14. O-O-O {[%clk 0:02:13]}  b5 {[%clk 0:02:11]} 15. Bd3 {[%clk 0:02:07]}  a6 {[%clk 0:02:05]} 16. Kb1 {[%clk 0:02:04]}  c5 {[%clk 0:02:02]} 17. dxc5 {[%clk 0:01:38]}  Bxc5 {[%clk 0:01:50]} 18. Bxc5 {[%clk 0:01:26]}  Nxc5 {[%clk 0:01:49]} 19. Nb3 {[%clk 0:01:26]}  Nxb3 {[%clk 0:01:24]} 20. axb3 {[%clk 0:01:24]}  Qc7 {[%clk 0:01:17]} 21. Ne2 {[%clk 0:01:20]}  Qe5 {[%clk 0:01:12]} 22. Qc3 {[%clk 0:01:20]}  Qb8 {[%clk 0:01:03]} 23. Qc5 {[%clk 0:01:05]}  Rc8 {[%clk 0:00:58]} 24. Qg5 {[%clk 0:01:05]}  Rd8 {[%clk 0:00:53]} 25. Rhg1 {[%clk 0:00:54]}  Ra7 {[%clk 0:00:44]} 26. Bc2 {[%clk 0:00:52]}  Rad7 {[%clk 0:00:42]} 27. Rxd7 {[%clk 0:00:52]}  Rxd7 {[%clk 0:00:43]} 28. f4 {[%clk 0:00:48]}  Qd8 {[%clk 0:00:19]} 29. f5 {[%clk 0:00:47]}  exf5 {[%clk 0:00:18]} 30. exf5 {[%clk 0:00:46]}  Qxg5 {[%clk 0:00:11]} 31. hxg5 {[%clk 0:00:47]}  Rd2 {[%clk 0:00:08]} 32. Nc3 {[%clk 0:00:32]}  Rxc2 {[%clk 0:00:08]} 33. Kxc2 {[%clk 0:00:33]}  Bxf5+ {[%clk 0:00:08]} 34. Kd2 {[%clk 0:00:34]}  g6 {[%clk 0:00:08]} 35. Nd5 {[%clk 0:00:34]}  Kg7 {[%clk 0:00:08]} 36. Nc7 {[%clk 0:00:31]}  Nf4 {[%clk 0:00:05]} 37. Nxa6 {[%clk 0:00:26]}  Be6 {[%clk 0:00:06]} 38. Nc5 {[%clk 0:00:25]}  Bf5 {[%clk 0:00:04]} 39. Ke3 {[%clk 0:00:22]}  Nd5+ {[%clk 0:00:04]} 40. Kf3 {[%clk 0:00:17]}  Nb4 {[%clk 0:00:03]} 41. Ra1 {[%clk 0:00:15]}  Nc6 {[%clk 0:00:01]} 42. Ke3 {[%clk 0:00:12]} 1-0


[Site "https://www.chess.com"]

[Event "Titled Tuesday Blitz April 05 Late 2022"]
[White "Calderon, Zachary"]
[Black "Hernandez Bermudez, Ulises Eduardo"]
[WhiteFideId "2076969"]
[BlackFideId "3902510"]
[WhiteElo "2293"]
[BlackElo "2056"]
[Result "0-1"]
[Round "04"]
[TimeControl "180+1"]
[Date "2022.04.06"]
[WhiteClock "0:00:22"]
[BlackClock "0:01:22"]

1. Nf3 {[%clk 0:03:00]}  Nf6 {[%clk 0:02:58]} 2. c4 {[%clk 0:02:59]}  c5 {[%clk 0:02:55]} 3. d4 {[%clk 0:02:59]}  cxd4 {[%clk 0:02:54]} 4. Nxd4 {[%clk 0:03:00]}  e6 {[%clk 0:02:55]} 5. Nc2 {[%clk 0:02:59]}  d5 {[%clk 0:02:54]} 6. Nc3 {[%clk 0:02:58]}  Nc6 {[%clk 0:02:53]} 7. cxd5 {[%clk 0:02:59]}  exd5 {[%clk 0:02:53]} 8. Bg5 {[%clk 0:02:58]}  Bc5 {[%clk 0:02:52]} 9. e3 {[%clk 0:02:56]}  Be6 {[%clk 0:02:51]} 10. Be2 {[%clk 0:02:53]}  O-O {[%clk 0:02:47]} 11. O-O {[%clk 0:02:49]}  Be7 {[%clk 0:02:47]} 12. Nd4 {[%clk 0:02:33]}  Nxd4 {[%clk 0:02:35]} 13. Qxd4 {[%clk 0:02:34]}  a6 {[%clk 0:02:24]} 14. Bf3 {[%clk 0:02:26]}  h6 {[%clk 0:02:22]} 15. Bf4 {[%clk 0:02:22]}  Rc8 {[%clk 0:02:21]} 16. Rac1 {[%clk 0:02:20]}  b5 {[%clk 0:02:20]} 17. Rfd1 {[%clk 0:02:19]}  Qd7 {[%clk 0:02:03]} 18. Qb6 {[%clk 0:01:55]}  Rc6 {[%clk 0:01:58]} 19. Qd4 {[%clk 0:01:45]}  Rfc8 {[%clk 0:01:56]} 20. Ne2 {[%clk 0:01:38]}  Rc4 {[%clk 0:01:49]} 21. Rxc4 {[%clk 0:01:34]}  Rxc4 {[%clk 0:01:50]} 22. Qb6 {[%clk 0:01:29]}  Qc8 {[%clk 0:01:37]} 23. Nd4 {[%clk 0:01:00]}  Nd7 {[%clk 0:01:29]} 24. Qxa6 {[%clk 0:00:49]}  Qxa6 {[%clk 0:01:26]} 25. Nxe6 {[%clk 0:00:21]}  fxe6 {[%clk 0:01:22]} 26. h3 {[%clk 0:00:22]} 0-1


[Site "https://www.chess.com"]

[Event "Titled Tuesday Blitz April 05 Late 2022"]
[White "Chernobay, Artem"]
[Black "Zhigalko, Sergei"]
[WhiteFideId "4167406"]
[BlackFideId "13502956"]
[WhiteElo "2473"]
[BlackElo "2662"]
[Result "1-0"]
[Round "04"]
[TimeControl "180+1"]
[Date "2022.04.05"]
[WhiteClock "0:00:15"]
[BlackClock "0:00:02"]

1. e4 {[%clk 0:03:00]}  c5 {[%clk 0:03:00]} 2. Nf3 {[%clk 0:03:00]}  Nc6 {[%clk 0:03:00]} 3. d4 {[%clk 0:02:58]}  cxd4 {[%clk 0:03:01]} 4. Nxd4 {[%clk 0:02:58]}  Nf6 {[%clk 0:03:02]} 5. Nc3 {[%clk 0:02:58]}  e5 {[%clk 0:03:01]} 6. Ndb5 {[%clk 0:02:57]}  d6 {[%clk 0:03:01]} 7. Bg5 {[%clk 0:02:56]}  a6 {[%clk 0:03:01]} 8. Bxf6 {[%clk 0:02:54]}  gxf6 {[%clk 0:03:01]} 9. Na3 {[%clk 0:02:55]}  b5 {[%clk 0:03:02]} 10. Nd5 {[%clk 0:02:54]}  Bg7 {[%clk 0:03:01]} 11. c3 {[%clk 0:02:52]}  f5 {[%clk 0:03:01]} 12. exf5 {[%clk 0:02:50]}  Bxf5 {[%clk 0:03:02]} 13. Nc2 {[%clk 0:02:51]}  Be6 {[%clk 0:03:00]} 14. Nce3 {[%clk 0:02:49]}  Ne7 {[%clk 0:03:00]} 15. g3 {[%clk 0:02:27]}  Nxd5 {[%clk 0:02:59]} 16. Nxd5 {[%clk 0:02:27]}  O-O {[%clk 0:02:59]} 17. Bg2 {[%clk 0:02:26]}  a5 {[%clk 0:02:56]} 18. O-O {[%clk 0:02:25]}  Rb8 {[%clk 0:02:56]} 19. a3 {[%clk 0:02:22]}  Kh8 {[%clk 0:02:55]} 20. Qd2 {[%clk 0:02:07]}  f5 {[%clk 0:02:51]} 21. f4 {[%clk 0:02:03]}  Qd7 {[%clk 0:02:42]} 22. Kh1 {[%clk 0:01:57]}  e4 {[%clk 0:02:39]} 23. Rad1 {[%clk 0:01:28]}  Qf7 {[%clk 0:02:29]} 24. g4 {[%clk 0:01:15]}  fxg4 {[%clk 0:01:44]} 25. Bxe4 {[%clk 0:01:15]}  Qh5 {[%clk 0:01:45]} 26. Qg2 {[%clk 0:00:58]}  Bg8 {[%clk 0:01:14]} 27. f5 {[%clk 0:00:48]}  Bxd5 {[%clk 0:00:56]} 28. Rxd5 {[%clk 0:00:47]}  Be5 {[%clk 0:00:57]} 29. f6 {[%clk 0:00:42]}  b4 {[%clk 0:00:51]} 30. axb4 {[%clk 0:00:31]}  axb4 {[%clk 0:00:52]} 31. Ra5 {[%clk 0:00:21]}  bxc3 {[%clk 0:00:46]} 32. bxc3 {[%clk 0:00:21]}  Rb3 {[%clk 0:00:24]} 33. Ra7 {[%clk 0:00:18]}  h6 {[%clk 0:00:04]} 34. Rh7+ {[%clk 0:00:15]}  Kg8 {[%clk 0:00:04]} 35. f7+ {[%clk 0:00:16]}  Rxf7 {[%clk 0:00:02]} 36. Rhxf7 {[%clk 0:00:16]}  Qxf7 {[%clk 0:00:01]} 37. Rxf7 {[%clk 0:00:15]}  Kxf7 {[%clk 0:00:02]} 38. Bd5+ {[%clk 0:00:15]} 1-0


[Site "https://www.chess.com"]

[Event "Titled Tuesday Blitz April 05 Late 2022"]
[White "Chernomordik, Pavel"]
[Black "Najer, Evgeniy"]
[WhiteFideId "2804530"]
[BlackFideId "4118987"]
[WhiteElo "2456"]
[BlackElo "2630"]
[Result "0-1"]
[Round "04"]
[TimeControl "180+1"]
[Date "2022.04.06"]
[WhiteClock "0:00:01"]
[BlackClock "0:00:04"]

1. e4 {[%clk 0:03:00]}  c6 {[%clk 0:02:57]} 2. Nc3 {[%clk 0:02:59]}  d5 {[%clk 0:02:57]} 3. Nf3 {[%clk 0:03:00]}  Bg4 {[%clk 0:02:56]} 4. h3 {[%clk 0:02:59]}  Bxf3 {[%clk 0:02:56]} 5. Qxf3 {[%clk 0:02:59]}  Nf6 {[%clk 0:02:56]} 6. d3 {[%clk 0:02:58]}  e6 {[%clk 0:02:52]} 7. Qg3 {[%clk 0:02:58]}  h5 {[%clk 0:02:46]} 8. Bg5 {[%clk 0:02:47]}  Qb6 {[%clk 0:02:35]} 9. O-O-O {[%clk 0:02:45]}  d4 {[%clk 0:02:34]} 10. Nb1 {[%clk 0:02:38]}  Qa5 {[%clk 0:02:22]} 11. a3 {[%clk 0:02:28]}  Na6 {[%clk 0:02:22]} 12. Bd2 {[%clk 0:02:24]}  Qb5 {[%clk 0:02:16]} 13. f4 {[%clk 0:02:23]}  Nc5 {[%clk 0:02:15]} 14. Qf2 {[%clk 0:02:03]}  O-O-O {[%clk 0:02:04]} 15. b3 {[%clk 0:01:42]}  Qa6 {[%clk 0:01:19]} 16. Bb4 {[%clk 0:01:28]}  h4 {[%clk 0:01:11]} 17. Kb2 {[%clk 0:01:23]}  Qb5 {[%clk 0:01:07]} 18. Qe1 {[%clk 0:01:20]}  Na6 {[%clk 0:00:57]} 19. Bxf8 {[%clk 0:01:18]}  Rdxf8 {[%clk 0:00:55]} 20. c4 {[%clk 0:01:11]}  Qb6 {[%clk 0:00:46]} 21. Ka2 {[%clk 0:01:03]}  Rd8 {[%clk 0:00:44]} 22. Nd2 {[%clk 0:01:01]}  Qc7 {[%clk 0:00:30]} 23. e5 {[%clk 0:00:56]}  Nd7 {[%clk 0:00:22]} 24. Nf3 {[%clk 0:00:54]}  Ndc5 {[%clk 0:00:18]} 25. Nxh4 {[%clk 0:00:43]}  Qb6 {[%clk 0:00:16]} 26. Rb1 {[%clk 0:00:43]}  Kb8 {[%clk 0:00:05]} 27. Nf3 {[%clk 0:00:41]}  Nc7 {[%clk 0:00:05]} 28. Ng5 {[%clk 0:00:33]}  Rd7 {[%clk 0:00:04]} 29. Ne4 {[%clk 0:00:29]}  a5 {[%clk 0:00:04]} 30. Nxc5 {[%clk 0:00:19]}  Qxc5 {[%clk 0:00:04]} 31. b4 {[%clk 0:00:19]}  axb4 {[%clk 0:00:04]} 32. Qxb4 {[%clk 0:00:18]}  Na6 {[%clk 0:00:04]} 33. Qb3 {[%clk 0:00:15]}  Ka7 {[%clk 0:00:02]} 34. Be2 {[%clk 0:00:15]}  Ra8 {[%clk 0:00:02]} 35. Rb2 {[%clk 0:00:14]}  Kb8 {[%clk 0:00:02]} 36. Rhb1 {[%clk 0:00:13]}  Ra7 {[%clk 0:00:03]} 37. Bf3 {[%clk 0:00:10]}  Kc8 {[%clk 0:00:02]} 38. Qb6 {[%clk 0:00:08]}  Qxb6 {[%clk 0:00:02]} 39. Rxb6 {[%clk 0:00:08]}  Nc5 {[%clk 0:00:03]} 40. Be2 {[%clk 0:00:06]}  Kc7 {[%clk 0:00:03]} 41. R6b4 {[%clk 0:00:05]}  Rd8 {[%clk 0:00:02]} 42. h4 {[%clk 0:00:04]}  Rda8 {[%clk 0:00:03]} 43. Kb2 {[%clk 0:00:01]}  Rxa3 {[%clk 0:00:04]} 44. Kc2 {[%clk 0:00:01]}  Rc3+ {[%clk 0:00:03]} 45. Kd2 {[%clk 0:00:01]}  Raa3 {[%clk 0:00:04]} 0-1


[Site "https://www.chess.com"]

[Event "Titled Tuesday Blitz April 05 Late 2022"]
[White "Clawitter, Craig"]
[Black "Golubev, Mikhail"]
[WhiteFideId "2023105"]
[BlackFideId "14100983"]
[WhiteElo "2229"]
[BlackElo "2374"]
[Result "0-1"]
[Round "04"]
[TimeControl "180+1"]
[Date "2022.04.06"]
[WhiteClock "0:00:30"]
[BlackClock "0:01:47"]

1. e4 {[%clk 0:03:00]}  c5 {[%clk 0:02:59]} 2. Nf3 {[%clk 0:02:59]}  d6 {[%clk 0:02:59]} 3. d4 {[%clk 0:02:47]}  cxd4 {[%clk 0:02:58]} 4. Nxd4 {[%clk 0:02:46]}  Nf6 {[%clk 0:02:58]} 5. Nc3 {[%clk 0:02:46]}  g6 {[%clk 0:02:58]} 6. Be3 {[%clk 0:02:47]}  Bg7 {[%clk 0:02:59]} 7. f3 {[%clk 0:02:47]}  Nc6 {[%clk 0:02:59]} 8. Qd2 {[%clk 0:02:48]}  O-O {[%clk 0:02:59]} 9. Bc4 {[%clk 0:02:47]}  Bd7 {[%clk 0:02:58]} 10. O-O-O {[%clk 0:02:47]}  Rb8 {[%clk 0:02:58]} 11. Bb3 {[%clk 0:02:47]}  Na5 {[%clk 0:02:58]} 12. Bh6 {[%clk 0:02:41]}  Nxb3+ {[%clk 0:02:55]} 13. axb3 {[%clk 0:02:42]}  Qa5 {[%clk 0:02:45]} 14. Kb1 {[%clk 0:02:40]}  Bxh6 {[%clk 0:02:38]} 15. Qxh6 {[%clk 0:02:39]}  b5 {[%clk 0:02:38]} 16. g4 {[%clk 0:02:26]}  b4 {[%clk 0:02:33]} 17. Nd5 {[%clk 0:02:25]}  Nxd5 {[%clk 0:02:27]} 18. exd5 {[%clk 0:02:26]}  Rb6 {[%clk 0:02:23]} 19. Nf5 {[%clk 0:02:05]}  Bxf5 {[%clk 0:02:20]} 20. gxf5 {[%clk 0:02:06]}  Ra6 {[%clk 0:02:19]} 21. Kc1 {[%clk 0:01:56]}  Qa1+ {[%clk 0:02:18]} 22. Kd2 {[%clk 0:01:56]}  Qxb2 {[%clk 0:02:18]} 23. Rhe1 {[%clk 0:01:36]}  Qd4+ {[%clk 0:02:01]} 24. Ke2 {[%clk 0:01:33]}  Qe5+ {[%clk 0:02:01]} 25. Kf1 {[%clk 0:01:32]}  Qxf5 {[%clk 0:02:01]} 26. Rxe7 {[%clk 0:01:26]}  Qxc2 {[%clk 0:01:58]} 27. Rde1 {[%clk 0:01:15]}  Ra2 {[%clk 0:01:55]} 28. R1e2 {[%clk 0:00:44]}  Qxb3 {[%clk 0:01:52]} 29. Re8 {[%clk 0:00:30]}  Qxf3+ {[%clk 0:01:49]} 30. Ke1 {[%clk 0:00:30]}  Ra1+ {[%clk 0:01:47]} 31. Kd2 {[%clk 0:00:30]}  Qc3# {[%clk 0:01:47]} 0-1


[Site "https://www.chess.com"]

[Event "Titled Tuesday Blitz April 05 Late 2022"]
[White "Curtis, John"]
[Black "Derraugh, Geordie"]
[WhiteFideId "3200256"]
[BlackFideId "2603950"]
[WhiteElo "2203"]
[BlackElo "2116"]
[Result "1-0"]
[Round "04"]
[TimeControl "180+1"]
[Date "2022.04.06"]
[WhiteClock "0:00:18"]
[BlackClock "0:01:27"]

1. e4 {[%clk 0:03:00]}  c5 {[%clk 0:02:58]} 2. Nf3 {[%clk 0:03:00]}  d6 {[%clk 0:02:59]} 3. d4 {[%clk 0:02:54]}  cxd4 {[%clk 0:03:00]} 4. Nxd4 {[%clk 0:02:54]}  Nf6 {[%clk 0:03:01]} 5. Nc3 {[%clk 0:02:54]}  a6 {[%clk 0:03:00]} 6. Bg5 {[%clk 0:02:54]}  e6 {[%clk 0:03:00]} 7. Qf3 {[%clk 0:02:51]}  Be7 {[%clk 0:02:57]} 8. O-O-O {[%clk 0:02:50]}  Nbd7 {[%clk 0:02:57]} 9. Qg3 {[%clk 0:02:45]}  Qc7 {[%clk 0:02:57]} 10. f4 {[%clk 0:02:39]}  b5 {[%clk 0:02:47]} 11. Bxf6 {[%clk 0:02:36]}  Bxf6 {[%clk 0:02:40]} 12. Bxb5 {[%clk 0:02:35]}  axb5 {[%clk 0:02:41]} 13. Ndxb5 {[%clk 0:02:35]}  Qb8 {[%clk 0:02:40]} 14. Nxd6+ {[%clk 0:02:34]}  Kf8 {[%clk 0:02:40]} 15. e5 {[%clk 0:02:34]}  Be7 {[%clk 0:02:39]} 16. Rhf1 {[%clk 0:01:52]}  g6 {[%clk 0:02:39]} 17. Qd3 {[%clk 0:01:44]}  Kg7 {[%clk 0:02:30]} 18. Nxc8 {[%clk 0:01:43]}  Rxc8 {[%clk 0:02:26]} 19. Qxd7 {[%clk 0:01:42]}  Bb4 {[%clk 0:02:23]} 20. f5 {[%clk 0:01:37]}  Bxc3 {[%clk 0:02:07]} 21. bxc3 {[%clk 0:01:37]}  Rxa2 {[%clk 0:02:04]} 22. f6+ {[%clk 0:00:44]}  Kg8 {[%clk 0:02:02]} 23. Qxc8+ {[%clk 0:00:41]}  Qxc8 {[%clk 0:02:02]} 24. Rf3 {[%clk 0:00:39]}  Ra1+ {[%clk 0:01:56]} 25. Kd2 {[%clk 0:00:39]}  Rxd1+ {[%clk 0:01:55]} 26. Kxd1 {[%clk 0:00:38]}  Qc5 {[%clk 0:01:50]} 27. Rd3 {[%clk 0:00:33]}  Qg1+ {[%clk 0:01:50]} 28. Kd2 {[%clk 0:00:33]}  Qxg2+ {[%clk 0:01:51]} 29. Kc1 {[%clk 0:00:34]}  h5 {[%clk 0:01:50]} 30. Rd8+ {[%clk 0:00:33]}  Kh7 {[%clk 0:01:50]} 31. Rf8 {[%clk 0:00:31]}  Qg1+ {[%clk 0:01:45]} 32. Kb2 {[%clk 0:00:27]}  Qb6+ {[%clk 0:01:45]} 33. Kc1 {[%clk 0:00:27]}  Qc7 {[%clk 0:01:46]} 34. h4 {[%clk 0:00:24]}  Qxe5 {[%clk 0:01:43]} 35. Rxf7+ {[%clk 0:00:24]}  Kh6 {[%clk 0:01:43]} 36. Rf8 {[%clk 0:00:21]}  Qf4+ {[%clk 0:01:40]} 37. Kb2 {[%clk 0:00:22]}  Qxh4 {[%clk 0:01:41]} 38. Rh8+ {[%clk 0:00:18]}  Kg5 {[%clk 0:01:41]} 39. f7 {[%clk 0:00:18]}  Qf4 {[%clk 0:01:36]} 40. f8=Q {[%clk 0:00:17]}  Qxf8 {[%clk 0:01:36]} 41. Rxf8 {[%clk 0:00:17]}  h4 {[%clk 0:01:37]} 42. c4 {[%clk 0:00:16]}  h3 {[%clk 0:01:37]} 43. c5 {[%clk 0:00:16]}  h2 {[%clk 0:01:21]} 44. Rh8 {[%clk 0:00:16]}  Kf6 {[%clk 0:01:22]} 45. c6 {[%clk 0:00:16]}  Ke7 {[%clk 0:01:22]} 46. c7 {[%clk 0:00:16]}  h1=Q {[%clk 0:01:22]} 47. Rxh1 {[%clk 0:00:16]}  Kd7 {[%clk 0:01:23]} 48. Rh7+ {[%clk 0:00:17]}  Kc8 {[%clk 0:01:24]} 49. Kc3 {[%clk 0:00:18]}  g5 {[%clk 0:01:25]} 50. Kd4 {[%clk 0:00:18]}  g4 {[%clk 0:01:26]} 51. Kc5 {[%clk 0:00:18]}  g3 {[%clk 0:01:27]} 52. Kc6 {[%clk 0:00:18]}  g2 {[%clk 0:01:27]} 53. Rh8# {[%clk 0:00:18]} 1-0


[Site "https://www.chess.com"]